fUST/lending_fUST_20250203
["ID","MTS","AMOUNT","RATE_DAILY","PERIOD"]
[351374392,1738547448866,-500.0,0.00016712,2]
[351374393,1738547448877,-500.0,0.00016712,2]
[351374394,1738547448887,-509.26963203,0.00016712,2]
[351374395,1738547448898,-500.0,0.00016712,2]
[351374396,1738547448908,-151.0,0.000168,2]
[351374397,1738547448918,-151.0,0.000168,2]
[351374398,1738547448928,-420.0,0.00016837,2]
[351374399,1738547448939,-151.0,0.00016847,2]
[351374400,1738547448950,-161.36833736,0.00016848,2]
[351374401,1738547448960,-500.0,0.00016849,2]
[351374402,1738547448971,-500.0,0.00016849,2]
[351374404,1738547448981,-500.0,0.00016849,2]
[351374405,1738547448992,-500.0,0.00016849,2]
[351374406,1738547449003,-500.0,0.00016849,2]
[351374407,1738547449014,-500.0,0.00016849,2]
[351374408,1738547449023,-500.0,0.00016849,2]
[351374409,1738547449034,-500.0,0.00016849,2]
[351374410,1738547449044,-500.0,0.00016849,2]
[351374411,1738547449057,-500.0,0.00016849,2]
[351374412,1738547449067,-510.69771154,0.00016849,2]
[351374413,1738547449076,-505.3917942,0.00016849,2]
[351374414,1738547449087,-500.0,0.00016849,2]
[351374415,1738547449098,-313.15605641,0.00016849,2]
[351374416,1738547449109,-506.30284672,0.00016849,2]
[351374417,1738547449119,-241.17742146,0.00016849,2]
[351374418,1738547449129,-500.0,0.00016849,2]
[351374419,1738547449140,-500.0,0.00016849,2]
[351374420,1738547449149,-550.97973745,0.00016849,2]
[351374421,1738547449158,-500.0,0.00016849,2]
[351374422,1738547449168,-500.0,0.00016849,2]
[351374423,1738547449178,-500.0,0.00016849,2]
[351374424,1738547449189,-500.0,0.00016849,2]
[351374426,1738547449198,-500.0,0.00016849,2]
[351374427,1738547449208,-500.0,0.00016849,2]
[351374428,1738547449222,-500.0,0.00016849,2]
[351374429,1738547449232,-512.26883353,0.00016849,2]
[351374430,1738547449243,-500.0,0.00016849,2]
[351374431,1738547449254,-500.0,0.00016849,2]
[351374433,1738547449265,-580.87,0.00016849,2]
[351374434,1738547449277,-500.0,0.00016849,2]
[351374435,1738547449287,-500.0,0.00016849,2]
[351374436,1738547449298,-500.0,0.00016849,2]
[351374437,1738547449313,-500.0,0.00016849,2]
[351374438,1738547449323,-514.04651749,0.00016849,2]
[351374439,1738547449333,-505.15211658,0.00016849,2]
[351374440,1738547449343,-500.0,0.00016849,2]
[351374441,1738547449354,-500.0,0.00016849,2]
[351374442,1738547449365,-505.77131162,0.00016849,2]
[351374443,1738547449376,-509.83,0.00016849,2]
[351374444,1738547449386,-500.0,0.00016849,2]
[351374445,1738547449397,-500.0,0.00016849,2]
[351374446,1738547449407,-510.82048639,0.00016849,2]
[351374447,1738547449418,-1402.8,0.00016849,2]
[351374448,1738547449429,-507.25791754,0.00016849,2]
[351374449,1738547449440,-269.39692654,0.00016849,2]
[351374450,1738547449451,-500.0,0.00016849,2]
[351374451,1738547449463,-897.88,0.00016849,2]
[351374452,1738547449473,-500.0,0.00016849,2]
[351374453,1738547449484,-500.0,0.00016849,2]
[351374454,1738547449495,-1648.06,0.00016849,2]
[351374455,1738547449505,-2683.97,0.00016849,2]
[351374456,1738547449516,-500.0,0.00016849,2]
[351374457,1738547449527,-2118.69,0.00016849,2]
[351374458,1738547449538,-6901.59,0.00016849,2]
[351374459,1738547449549,-6611.72,0.00016849,2]
[351374460,1738547449564,-581.87025661,0.00016849,2]
[351374461,1738547449574,-895.24,0.00016849,2]
[351374462,1738547449584,-500.0,0.00016849,2]
[351374463,1738547449595,-608.45,0.00016849,2]
[351374464,1738547449605,-500.0,0.00016849,2]
[351374465,1738547449616,-500.0,0.00016849,2]
[351374467,1738547449628,-500.0,0.00016849,2]
[351374468,1738547449639,-500.0,0.00016849,2]
[351374469,1738547449648,-1567.85,0.00016849,2]
[351374470,1738547449658,-500.0,0.00016849,2]
[351374471,1738547449668,-500.0,0.00016849,2]
[351374472,1738547449678,-505.74492828,0.00016849,2]
[351374473,1738547449688,-500.0,0.00016849,2]
[351374474,1738547449698,-804.26,0.00016849,2]
[351374475,1738547449708,-500.0,0.00016849,2]
[351374476,1738547449718,-505.53401395,0.00016849,2]
[351374477,1738547449728,-644.9,0.00016849,2]
[351374478,1738547449738,-515.20474201,0.00016849,2]
[351374479,1738547449748,-500.0,0.00016849,2]
[351374481,1738547449847,-500.0,0.00016849,2]
[351374482,1738547449858,-500.0,0.00016849,2]
[351374483,1738547449868,-500.0,0.00016849,2]
[351374484,1738547449878,-6458.91,0.00016849,2]
[351374485,1738547449888,-500.0,0.00016849,2]
[351374486,1738547449898,-746.7,0.00016849,2]
[351374487,1738547449908,-500.0,0.00016849,2]
[351374488,1738547449918,-500.0,0.00016849,2]
[351374489,1738547449927,-1732.28,0.00016849,2]
[351374490,1738547449936,-931.28,0.00016849,2]
[351374491,1738547449947,-500.0,0.00016849,2]
[351374492,1738547449956,-500.0,0.00016849,2]
[351374493,1738547449966,-500.0,0.00016849,2]
[351374494,1738547449977,-691.39,0.00016849,2]
[351374495,1738547449987,-1667.79,0.00016849,2]
[351374496,1738547449999,-500.0,0.00016849,2]
[351374497,1738547450009,-793.98,0.00016849,2]
[351374498,1738547450019,-500.0,0.00016849,2]
[351374499,1738547450030,-516.01590752,0.00016849,2]
[351374500,1738547450041,-500.0,0.00016849,2]
[351374501,1738547450055,-500.0,0.00016849,2]
[351374502,1738547450066,-3854.64,0.00016849,2]
[351374503,1738547450077,-500.0,0.00016849,2]
[351374504,1738547450089,-500.0,0.00016849,2]
[351374505,1738547450100,-500.0,0.00016849,2]
[351374506,1738547450110,-500.0,0.00016849,2]
[351374507,1738547450120,-526.94032196,0.00016849,2]
[351374508,1738547450131,-705.89,0.00016849,2]
[351374509,1738547450141,-411.63732152,0.00016849,2]
[351374510,1738547450152,-500.0,0.00016849,2]
[351374511,1738547450162,-697.8,0.00016849,2]
[351374512,1738547450171,-2564.36,0.00016849,2]
[351374513,1738547450181,-230.78733944,0.00016849,2]
[351374514,1738547450191,-504.50362334,0.00016849,2]
[351374515,1738547450202,-500.0,0.00016849,2]
[351374516,1738547450214,-500.0,0.00016849,2]
[351374517,1738547450225,-500.0,0.00016892,2]
[351374518,1738547450236,-151.0,0.000169,2]
[351374519,1738547450246,-248.64556978,0.000169,2]
[351374520,1738547450257,-156.411,0.0001691,2]
[351374521,1738547450267,-248.64556971,0.00016934,2]
[351374522,1738547450279,-248.64556971,0.00016969,2]
[351374523,1738547450291,-151.0,0.00016986,2]
[351374524,1738547450305,-151.0,0.00016986,2]
[351374525,1738547450315,-157.34838314,0.00016986,2]
[351374526,1738547450325,-500.0,0.00016986,2]
[351374527,1738547450337,-500.0,0.00016986,2]
[351374528,1738547450348,-500.0,0.00016986,2]
[351374529,1738547450360,-613.07583562,0.00016986,2]
[351374530,1738547450370,-536.63971104,0.00016986,2]
[351374531,1738547450381,-500.0,0.00016986,2]
[351374532,1738547450393,-387.96910154,0.00016986,2]
[351374533,1738547450405,-530.99685991,0.00016986,2]
[351374534,1738547450415,-504.34939717,0.00016986,2]
[351374535,1738547450425,-442.3027801,0.00016986,2]
[351374536,1738547450437,-503.08681316,0.00016986,2]
[351374537,1738547450447,-500.0,0.00016986,2]
[351374538,1738547450458,-506.67360251,0.00016986,2]
[351374539,1738547450468,-500.0,0.00016986,2]
[351374540,1738547450479,-500.0,0.00016986,2]
[351374541,1738547450489,-507.52605418,0.00016986,2]
[351374542,1738547450500,-253.50948516,0.00016986,2]
[351374543,1738547450511,-500.0,0.00016986,2]
[351374544,1738547450525,-500.0,0.00016986,2]
[351374545,1738547450535,-500.0,0.00016986,2]
[351374546,1738547450546,-500.0,0.00016986,2]
[351374547,1738547450560,-580.87,0.00016986,2]
[351374548,1738547450569,-303.18718919,0.00016986,2]
[351374549,1738547450579,-500.0,0.00016986,2]
[351374550,1738547450590,-500.0,0.00016986,2]
[351374551,1738547450601,-500.0,0.00016986,2]
[351374552,1738547450611,-500.0,0.00016986,2]
[351374553,1738547450621,-512.22405165,0.00016986,2]
[351374554,1738547450631,-509.83,0.00016986,2]
[351374555,1738547450641,-257.17410142,0.00016986,2]
[351374556,1738547450651,-500.0,0.00016986,2]
[351374557,1738547450662,-1402.8,0.00016986,2]
[351374558,1738547450673,-500.0,0.00016986,2]
[351374559,1738547450683,-897.88,0.00016986,2]
[351374560,1738547450694,-500.0,0.00016986,2]
[351374561,1738547450705,-500.0,0.00016986,2]
[351374562,1738547450716,-1648.06,0.00016986,2]
[351374563,1738547450728,-2683.97,0.00016986,2]
[351374564,1738547450738,-500.0,0.00016986,2]
[351374565,1738547450750,-2118.69,0.00016986,2]
[351374566,1738547450763,-6901.59,0.00016986,2]
[351374567,1738547450774,-6611.72,0.00016986,2]
[351374568,1738547450785,-895.24,0.00016986,2]
[351374569,1738547450795,-500.0,0.00016986,2]
[351374570,1738547450810,-608.45,0.00016986,2]
[351374571,1738547450821,-500.0,0.00016986,2]
[351374572,1738547450831,-511.33402051,0.00016986,2]
[351374573,1738547450841,-500.0,0.00016986,2]
[351374574,1738547450852,-151.0,0.00016986,2]
[351374575,1738547450864,-500.0,0.00016986,2]
[351374576,1738547450875,-500.0,0.00016986,2]
[351374577,1738547450885,-1567.85,0.00016986,2]
[351374578,1738547450895,-500.0,0.00016986,2]
[351374579,1738547450906,-500.0,0.00016986,2]
[351374580,1738547450916,-804.26,0.00016986,2]
[351374581,1738547450926,-151.0,0.00016986,2]
[351374582,1738547450939,-500.0,0.00016986,2]
[351374583,1738547450950,-206.096718,0.00016986,2]
[351374584,1738547450959,-644.9,0.00016986,2]
[351374585,1738547450969,-505.99211303,0.00016986,2]
[351374586,1738547450979,-500.0,0.00016986,2]
[351374587,1738547450989,-500.0,0.00016986,2]
[351374588,1738547450999,-500.0,0.00016986,2]
[351374589,1738547451009,-6458.91,0.00016986,2]
[351374590,1738547451019,-500.0,0.00016986,2]
[351374591,1738547451029,-746.7,0.00016986,2]
[351374592,1738547451038,-500.0,0.00016986,2]
[351374593,1738547451048,-500.0,0.00016986,2]
[351374594,1738547451062,-1732.28,0.00016986,2]
[351374595,1738547451073,-931.28,0.00016986,2]
[351374596,1738547451083,-500.0,0.00016986,2]
[351374597,1738547451093,-151.0,0.00016986,2]
[351374598,1738547451104,-500.0,0.00016986,2]
[351374599,1738547451114,-505.72709964,0.00016986,2]
[351374600,1738547451124,-691.39,0.00016986,2]
[351374601,1738547451204,-1667.79,0.00016986,2]
[351374602,1738547451216,-793.98,0.00016986,2]
[351374603,1738547451227,-500.0,0.00016986,2]
[351374604,1738547451237,-500.0,0.00016986,2]
[351374605,1738547451246,-259.38590198,0.00016986,2]
[351374606,1738547451256,-567.05432638,0.00016986,2]
[351374607,1738547451268,-3854.64,0.00016986,2]
[351374608,1738547451279,-500.0,0.00016986,2]
[351374609,1738547451290,-500.0,0.00016986,2]
[351374610,1738547451300,-500.0,0.00016986,2]
[351374611,1738547451312,-500.0,0.00016986,2]
[351374612,1738547451322,-705.89,0.00016986,2]
[351374613,1738547451332,-500.0,0.00016986,2]
[351374614,1738547451342,-697.8,0.00016986,2]
[351374615,1738547451351,-2564.36,0.00016986,2]
[351374616,1738547451363,-500.0,0.00016986,2]
[351374617,1738547451373,-500.0,0.00016986,2]
[351374618,1738547451384,-151.0,0.00017,2]
[351374620,1738547451394,-248.64556971,0.00017003,2]
[351374621,1738547451404,-500.77770864,0.00017021,2]
[351374622,1738547451414,-248.64556971,0.00017038,2]
[351374623,1738547451424,-248.64556971,0.00017072,2]
[351374624,1738547451435,-151.0,0.000171,2]
[351374625,1738547451445,-151.0,0.000171,2]
[351374626,1738547451455,-248.64556971,0.00017107,2]
[351374627,1738547451464,-504.97545173,0.00017121,2]
[351374628,1738547451475,-1000.0,0.00017121,2]
[351374629,1738547451485,-519.1434309,0.00017123,2]
[351374630,1738547451495,-500.0,0.00017123,2]
[351374631,1738547451504,-500.0,0.00017123,2]
[351374632,1738547451514,-500.0,0.00017123,2]
[351374633,1738547451524,-288.81538635,0.00017123,2]
[351374634,1738547451534,-500.0,0.00017123,2]
[351374635,1738547451544,-500.0,0.00017123,2]
[351374636,1738547451555,-514.38654008,0.00017123,2]
[351374637,1738547451565,-610.75713744,0.00017123,2]
[351374638,1738547451575,-500.0,0.00017123,2]
[351374639,1738547451585,-500.0,0.00017123,2]
[351374640,1738547451595,-580.87,0.00017123,2]
[351374641,1738547451604,-500.0,0.00017123,2]
[351374642,1738547451614,-500.0,0.00017123,2]
[351374643,1738547451624,-500.0,0.00017123,2]
[351374644,1738547451634,-500.0,0.00017123,2]
[351374645,1738547451644,-509.83,0.00017123,2]
[351374646,1738547451653,-630.15149321,0.00017123,2]
[351374647,1738547451663,-1402.8,0.00017123,2]
[351374648,1738547451672,-500.0,0.00017123,2]
[351374649,1738547451682,-897.88,0.00017123,2]
[351374650,1738547451693,-500.0,0.00017123,2]
[351374651,1738547451703,-151.0,0.00017123,2]
[351374652,1738547451713,-151.0,0.00017123,2]
[351374653,1738547451723,-500.0,0.00017123,2]
[351374654,1738547451733,-1648.06,0.00017123,2]
[351374655,1738547451743,-2683.97,0.00017123,2]
[351374656,1738547451752,-500.0,0.00017123,2]
[351374657,1738547451768,-2118.69,0.00017123,2]
[351374658,1738547451789,-6901.59,0.00017123,2]
[351374659,1738547451806,-6611.72,0.00017123,2]
[351374660,1738547451825,-895.24,0.00017123,2]
[351374661,1738547451845,-500.0,0.00017123,2]
[351374662,1738547451866,-208.036788,0.00017123,2]
[351374663,1738547451881,-608.45,0.00017123,2]
[351374664,1738547451900,-500.0,0.00017123,2]
[351374665,1738547451917,-635.73310744,0.00017123,2]
[351374666,1738547451932,-208.036788,0.00017123,2]
[351374667,1738547451948,-500.0,0.00017123,2]
[351374668,1738547451966,-1567.85,0.00017123,2]
[351374669,1738547451984,-300.2174046,0.00017123,2]
[351374670,1738547452000,-500.0,0.00017123,2]
[351374671,1738547452014,-512.91707183,0.00017123,2]
[351374672,1738547452033,-804.26,0.00017123,2]
[351374673,1738547452048,-302.3314062,0.00017123,2]
[351374674,1738547452068,-644.9,0.00017123,2]
[351374675,1738547452081,-500.0,0.00017123,2]
[351374676,1738547452095,-514.58277886,0.00017123,2]
[351374677,1738547452110,-6458.91,0.00017123,2]
[351374678,1738547452124,-507.65405389,0.00017123,2]
[351374679,1738547452138,-500.0,0.00017123,2]
[351374680,1738547452152,-746.7,0.00017123,2]
[351374681,1738547452166,-500.0,0.00017123,2]
[351374682,1738547452179,-500.0,0.00017123,2]
[351374683,1738547452193,-1732.28,0.00017123,2]
[351374684,1738547452207,-931.28,0.00017123,2]
[351374685,1738547452224,-500.0,0.00017123,2]
[351374686,1738547452238,-500.0,0.00017123,2]
[351374687,1738547452252,-691.39,0.00017123,2]
[351374688,1738547452269,-1667.79,0.00017123,2]
[351374689,1738547452283,-793.98,0.00017123,2]
[351374690,1738547452296,-500.0,0.00017123,2]
[351374691,1738547452313,-500.0,0.00017123,2]
[351374692,1738547452327,-3854.64,0.00017123,2]
[351374693,1738547452343,-500.0,0.00017123,2]
[351374694,1738547452358,-500.0,0.00017123,2]
[351374695,1738547452371,-500.0,0.00017123,2]
[351374696,1738547452387,-453.50106,0.00017123,2]
[351374697,1738547452401,-705.89,0.00017123,2]
[351374698,1738547452410,-500.0,0.00017123,2]
[351374699,1738547452420,-697.8,0.00017123,2]
[351374700,1738547452431,-2564.36,0.00017123,2]
[351374701,1738547452441,-500.0,0.00017123,2]
[351374702,1738547452451,-500.0,0.00017123,2]
[351374703,1738547452461,-501.93398295,0.0001714,2]
[351374704,1738547452470,-248.64556971,0.00017141,2]
[351374705,1738547452480,-406.4397321,0.00017146,2]
[351374706,1738547452490,-270.55628348,0.00017146,2]
[351374707,1738547452500,-173.89154468,0.00017146,2]
[351374708,1738547452509,-248.64556971,0.00017176,2]
[351374709,1738547452520,-151.0,0.000172,2]
[351374710,1738547452529,-2000.0,0.000172,2]
[351374711,1738547452539,-151.0,0.000172,2]
[351374712,1738547452549,-322.862633,0.000172,2]
[351374713,1738547452741,-322.862633,0.000172,2]
[351374714,1738547452754,-151.0,0.000172,2]
[351374715,1738547452764,-424.326815,0.000172,2]
[351374716,1738547452774,-424.326815,0.000172,2]
[351374717,1738547452783,-151.0,0.000172,2]
[351374718,1738547452793,-248.64556971,0.0001721,2]
[351374719,1738547452805,-151.0,0.0001723,2]
[351374720,1738547452815,-248.64556971,0.00017245,2]
[351374721,1738547452824,-500.0,0.0001726,2]
[351374722,1738547452834,-500.0,0.0001726,2]
[351374723,1738547452843,-500.0,0.0001726,2]
[351374724,1738547452852,-500.0,0.0001726,2]
[351374725,1738547452862,-500.0,0.0001726,2]
[351374726,1738547452871,-500.0,0.0001726,2]
[351374727,1738547452880,-500.0,0.0001726,2]
[351374728,1738547452891,-580.87,0.0001726,2]
[351374729,1738547452901,-500.0,0.0001726,2]
[351374730,1738547452910,-500.0,0.0001726,2]
[351374731,1738547452919,-500.0,0.0001726,2]
[351374732,1738547452929,-500.0,0.0001726,2]
[351374733,1738547452939,-509.83,0.0001726,2]
[351374734,1738547452948,-1402.8,0.0001726,2]
[351374735,1738547452957,-500.0,0.0001726,2]
[351374736,1738547452967,-897.88,0.0001726,2]
[351374737,1738547452976,-639.45914727,0.0001726,2]
[351374738,1738547452985,-500.0,0.0001726,2]
[351374739,1738547452995,-1648.06,0.0001726,2]
[351374740,1738547453005,-2683.97,0.0001726,2]
[351374741,1738547453014,-500.0,0.0001726,2]
[351374742,1738547453024,-6901.59,0.0001726,2]
[351374743,1738547453034,-6611.72,0.0001726,2]
[351374744,1738547453043,-895.24,0.0001726,2]
[351374745,1738547453055,-500.0,0.0001726,2]
[351374746,1738547453065,-608.45,0.0001726,2]
[351374747,1738547453074,-500.0,0.0001726,2]
[351374748,1738547453084,-500.0,0.0001726,2]
[351374749,1738547453094,-1567.85,0.0001726,2]
[351374750,1738547453104,-500.0,0.0001726,2]
[351374751,1738547453114,-804.26,0.0001726,2]
[351374752,1738547453124,-644.9,0.0001726,2]
[351374753,1738547453133,-509.25795159,0.0001726,2]
[351374754,1738547453143,-6458.91,0.0001726,2]
[351374755,1738547453153,-500.0,0.0001726,2]
[351374756,1738547453163,-746.7,0.0001726,2]
[351374757,1738547453172,-500.0,0.0001726,2]
[351374758,1738547453182,-500.0,0.0001726,2]
[351374759,1738547453192,-1732.28,0.0001726,2]
[351374760,1738547453203,-931.28,0.0001726,2]
[351374761,1738547453216,-500.0,0.0001726,2]
[351374762,1738547453227,-284.51160351,0.0001726,2]
[351374763,1738547453237,-691.39,0.0001726,2]
[351374764,1738547453247,-1667.79,0.0001726,2]
[351374765,1738547453259,-793.98,0.0001726,2]
[351374766,1738547453270,-500.0,0.0001726,2]
[351374767,1738547453280,-500.0,0.0001726,2]
[351374768,1738547453290,-3854.64,0.0001726,2]
[351374769,1738547453302,-500.0,0.0001726,2]
[351374770,1738547453315,-500.0,0.0001726,2]
[351374771,1738547453326,-500.0,0.0001726,2]
[351374772,1738547453336,-705.89,0.0001726,2]
[351374773,1738547453346,-519.70964091,0.0001726,2]
[351374774,1738547453356,-697.8,0.0001726,2]
[351374775,1738547453365,-2564.36,0.0001726,2]
[351374776,1738547453375,-500.0,0.0001726,2]
[351374777,1738547453384,-150.467,0.00017267,2]
[351374778,1738547453393,-2106.54,0.00017267,2]
[351374780,1738547453403,-2300.0,0.00017267,2]
[351374781,1738547453413,-248.64556971,0.00017279,2]
[351374782,1738547453423,-151.0,0.000173,2]
[351374783,1738547453433,-151.0,0.000173,2]
[351374784,1738547453443,-248.64556971,0.00017314,2]
[351374785,1738547453453,-153.69563301,0.00017315,2]
[351374786,1738547453462,-2031.33319291,0.0001734,2]
[351374787,1738547453472,-248.64556971,0.00017348,2]
[351374788,1738547453481,-248.64556971,0.00017383,2]
[351374789,1738547453490,-151.0,0.00017397,2]
[351374790,1738547453500,-151.0,0.00017397,2]
[351374791,1738547453511,-500.0,0.00017397,2]
[351374792,1738547453521,-536.82439098,0.00017397,2]
[351374793,1738547453531,-500.0,0.00017397,2]
[351374794,1738547453540,-500.0,0.00017397,2]
[351374795,1738547453549,-151.0,0.00017397,2]
[351374796,1738547453561,-518.40995195,0.00017397,2]
[351374797,1738547453571,-500.0,0.00017397,2]
[351374798,1738547453581,-500.0,0.00017397,2]
[351374799,1738547453590,-710.784779,0.00017397,2]
[351374800,1738547453601,-384.59044,0.00017397,2]
[351374801,1738547453610,-710.784779,0.00017397,2]
[351374802,1738547453620,-384.59044,0.00017397,2]
[351374803,1738547453629,-580.87,0.00017397,2]
[351374804,1738547453639,-151.0,0.00017397,2]
[351374805,1738547453649,-500.0,0.00017397,2]
[351374807,1738547453658,-500.0,0.00017397,2]
[351374808,1738547453668,-500.0,0.00017397,2]
[351374809,1738547453678,-500.0,0.00017397,2]
[351374810,1738547453688,-509.83,0.00017397,2]
[351374811,1738547453703,-1402.8,0.00017397,2]
[351374812,1738547453712,-500.0,0.00017397,2]
[351374813,1738547453722,-897.88,0.00017397,2]
[351374814,1738547453731,-500.0,0.00017397,2]
[351374815,1738547453741,-1648.06,0.00017397,2]
[351374816,1738547453752,-2683.97,0.00017397,2]
[351374817,1738547453762,-500.0,0.00017397,2]
[351374818,1738547453772,-6901.59,0.00017397,2]
[351374819,1738547453782,-6611.72,0.00017397,2]
[351374820,1738547453792,-895.24,0.00017397,2]
[351374821,1738547453805,-500.0,0.00017397,2]
[351374822,1738547453815,-608.45,0.00017397,2]
[351374823,1738547453825,-500.0,0.00017397,2]
[351374824,1738547453835,-151.0,0.00017397,2]
[351374825,1738547453845,-500.0,0.00017397,2]
[351374826,1738547453854,-1567.85,0.00017397,2]
[351374827,1738547453864,-500.0,0.00017397,2]
[351374828,1738547453873,-804.26,0.00017397,2]
[351374829,1738547453882,-152.683341,0.00017397,2]
[351374830,1738547453892,-644.9,0.00017397,2]
[351374831,1738547453902,-6458.91,0.00017397,2]
[351374832,1738547453912,-500.0,0.00017397,2]
[351374833,1738547453921,-746.7,0.00017397,2]
[351374834,1738547453931,-500.0,0.00017397,2]
[351374835,1738547453941,-500.0,0.00017397,2]
[351374836,1738547453951,-1732.28,0.00017397,2]
[351374837,1738547453960,-931.28,0.00017397,2]
[351374838,1738547453969,-500.0,0.00017397,2]
[351374839,1738547453979,-151.0,0.00017397,2]
[351374840,1738547453989,-691.39,0.00017397,2]
[351374841,1738547453998,-793.98,0.00017397,2]
[351374842,1738547454008,-1667.79,0.00017397,2]
[351374843,1738547454017,-500.0,0.00017397,2]
[351374844,1738547454027,-500.0,0.00017397,2]
[351374845,1738547454037,-3854.64,0.00017397,2]
[351374846,1738547454047,-500.0,0.00017397,2]
[351374847,1738547454059,-289.32218444,0.00017397,2]
[351374848,1738547454069,-500.0,0.00017397,2]
[351374849,1738547454078,-705.89,0.00017397,2]
[351374850,1738547454088,-697.8,0.00017397,2]
[351374852,1738547454097,-2564.36,0.00017397,2]
[351374853,1738547454106,-500.0,0.00017397,2]
[351374854,1738547454115,-500.0,0.00017397,2]
[351374855,1738547454125,-151.0,0.000174,2]
[351374856,1738547454134,-151.0,0.000174,2]
[351374857,1738547454144,-248.64556971,0.00017417,2]
[351374858,1738547454153,-248.64556971,0.00017452,2]
[351374859,1738547454162,-13039.18976102,0.00017452,2]
[351374860,1738547454171,-473.654,0.00017486,2]
[351374861,1738547454181,-248.64556971,0.00017486,2]
[351374862,1738547454191,-151.0,0.000175,2]
[351374863,1738547454200,-151.0,0.000175,2]
[351374864,1738547454210,-248.64556971,0.00017521,2]
[351374865,1738547454224,-151.0,0.00017533,2]
[351374866,1738547454233,-819.59407,0.00017533,2]
[351374867,1738547454244,-819.59407,0.00017533,2]
[351374868,1738547454254,-197.256062,0.00017533,2]
[351374869,1738547454268,-151.0,0.00017533,2]
[351374870,1738547454278,-2189.754296,0.00017533,2]
[351374871,1738547454288,-2189.754296,0.00017533,2]
[351374872,1738547454297,-188.95061284,0.00017534,2]
[351374873,1738547454313,-500.0,0.00017534,2]
[351374874,1738547454323,-152.175923,0.00017534,2]
[351374875,1738547454332,-151.0,0.00017534,2]
[351374876,1738547454342,-500.0,0.00017534,2]
[351374877,1738547454352,-500.0,0.00017534,2]
[351374878,1738547454362,-151.0,0.00017534,2]
[351374879,1738547454371,-500.0,0.00017534,2]
[351374880,1738547454381,-580.87,0.00017534,2]
[351374881,1738547454392,-500.0,0.00017534,2]
[351374882,1738547454403,-500.0,0.00017534,2]
[351374883,1738547454413,-500.0,0.00017534,2]
[351374884,1738547454424,-500.0,0.00017534,2]
[351374885,1738547454434,-509.83,0.00017534,2]
[351374886,1738547454444,-280.782611,0.00017534,2]
[351374887,1738547454455,-280.782611,0.00017534,2]
[351374888,1738547454465,-1402.8,0.00017534,2]
[351374889,1738547454475,-283.30506125,0.00017534,2]
[351374890,1738547454484,-897.88,0.00017534,2]
[351374891,1738547454494,-151.0,0.00017534,2]
[351374892,1738547454504,-151.0,0.00017534,2]
[351374893,1738547454514,-500.0,0.00017534,2]
[351374894,1738547454524,-1648.06,0.00017534,2]
[351374895,1738547454534,-2683.97,0.00017534,2]
[351374896,1738547454543,-500.0,0.00017534,2]
[351374897,1738547454555,-6901.59,0.00017534,2]
[351374898,1738547454565,-6611.72,0.00017534,2]
[351374899,1738547454575,-895.24,0.00017534,2]
[351374900,1738547454585,-500.0,0.00017534,2]